lending/lending_fUSD_20250508
["ID","MTS","AMOUNT","RATE_DAILY","PERIOD"]
[360264914,1746678618557,152.0,0.0003,30]
[360264928,1746678632556,-200.0,0.000197,2]
[360264929,1746678632567,-1599.22356625,0.0001975,2]
[360264930,1746678632576,-264.02754604,0.0001975,2]
[360264931,1746678632587,-200.0,0.00019774,2]
[360264932,1746678632599,-300.0,0.00019898,2]
[360264933,1746678632609,-1200.0,0.00019898,2]
[360264934,1746678632619,-300.0,0.00019898,2]
[360264935,1746678632628,-152.24547161,0.00019899,2]
[360264936,1746678632639,-7261.3277,0.00019899,2]
[360264937,1746678632649,-503.2801,0.00019899,2]
[360264938,1746678632660,-1000.0,0.00019899,2]
[360264939,1746678632670,-587.0,0.00019899,2]
[360264940,1746678632681,-1001.39849706,0.000199,2]
[360264941,1746678632691,-1001.39849706,0.000199,2]
[360264942,1746678632701,-1001.39849706,0.000199,2]
[360264943,1746678632710,-803.06548,0.000199,2]
[360264944,1746678632720,-233.98296428,0.000199,2]
[360264945,1746678632730,-1001.39849706,0.000199,2]
[360264947,1746678632740,-609.33415338,0.000199,2]
[360264949,1746678632750,-240.28586352,0.000199,2]
[360264951,1746678632760,-828.13536974,0.000199,2]
[360264953,1746678632770,-200.845898,0.000199,2]
[360264955,1746678632780,-1214.50440642,0.000199,2]
[360264957,1746678632790,-290.39562136,0.000199,2]
[360264959,1746678632800,-500.0,0.00019973,2]
[360264960,1746678632809,-500.0,0.00019973,2]
[360264963,1746678632819,-207.4,0.00019974,2]
[360264964,1746678632828,-2055.95261039,0.00019985,2]
[360264966,1746678632839,-1454.3708038,0.00019986,2]
[360264969,1746678632854,-40256.5085681,0.00019986,2]
[360264971,1746678632865,-3086.8894975,0.00019986,2]
[360264973,1746678632875,-151.0,0.00019988,2]
[360264975,1746678632885,-156.19099674,0.00019988,2]
[360264977,1746678632895,-668.65185757,0.00019988,2]
[360264979,1746678632906,-464.13,0.00019996,2]
[360264981,1746678632916,-26602.92683604,0.00019996,2]
[360264983,1746678632926,-1834.15796972,0.00019997,2]
[360264985,1746678632936,-399.65916982,0.00019998,2]
[360264987,1746678632946,-558.18526938,0.00019998,2]
[360264989,1746678632957,-508.16364235,0.00019998,2]
[360264991,1746678632967,-507.62637478,0.00019998,2]
[360264993,1746678632976,-501.22889679,0.00019998,2]
[360264995,1746678632986,-450.0,0.00019998,2]
[360264997,1746678632995,-184.43036519,0.00019998,2]
[360264999,1746678633006,-450.0,0.00019998,2]
[360265001,1746678633016,-450.0,0.00019998,2]
[360265003,1746678633027,-215.82255768,0.00019998,2]
[360265004,1746678633037,-450.0,0.00019998,2]
[360265005,1746678633048,-461.63820297,0.00019998,2]
[360265006,1746678633059,-500.0,0.00019998,2]
[360265007,1746678633070,-512.45011992,0.00019998,2]
[360265008,1746678633080,-501.26781241,0.00019998,2]
[360265009,1746678633090,-450.0,0.00019998,2]
[360265010,1746678633101,-450.0,0.00019998,2]
[360265011,1746678633111,-175.21471094,0.00019998,2]
[360265012,1746678633121,-204.37686867,0.00019998,2]
[360265013,1746678633131,-450.0,0.00019998,2]
[360265014,1746678633141,-450.0,0.00019998,2]
[360265015,1746678633151,-450.0,0.00019998,2]
[360265016,1746678633161,-450.0,0.00019998,2]
[360265017,1746678633171,-469.88174932,0.00019998,2]
[360265018,1746678633181,-450.0,0.00019998,2]
[360265019,1746678633191,-450.0,0.00019998,2]
[360265020,1746678633201,-183.25591853,0.00019998,2]
[360265021,1746678633211,-470.0,0.00019998,2]
[360265022,1746678633221,-450.0,0.00019998,2]
[360265023,1746678633231,-450.0,0.00019998,2]
[360265024,1746678633241,-464.13,0.00019998,2]
[360265025,1746678633251,-238.16067152,0.00019998,2]
[360265026,1746678633261,-493.39900063,0.00019998,2]
[360265027,1746678633270,-450.0,0.00019998,2]
[360265028,1746678633280,-966.99,0.00019998,2]
[360265029,1746678633290,-1043.95377767,0.00019998,2]
[360265030,1746678633306,-450.0,0.00019998,2]
[360265031,1746678633316,-450.0,0.00019998,2]
[360265032,1746678633326,-450.0,0.00019998,2]
[360265033,1746678633336,-464.47,0.00019998,2]
[360265034,1746678633346,-371.22578475,0.00019998,2]
[360265035,1746678633356,-450.0,0.00019998,2]
[360265036,1746678633366,-450.0,0.00019998,2]
[360265037,1746678633376,-450.0,0.00019998,2]
[360265038,1746678633386,-450.0,0.00019998,2]
[360265039,1746678633396,-450.0,0.00019998,2]
[360265040,1746678633406,-450.0,0.00019998,2]
[360265041,1746678633416,-450.0,0.00019998,2]
[360265042,1746678633425,-450.0,0.00019998,2]
[360265043,1746678633435,-450.0,0.00019998,2]
[360265044,1746678633445,-450.0,0.00019998,2]
[360265045,1746678633455,-215.95800537,0.00019998,2]
[360265046,1746678633465,-424.02,0.00019998,2]
[360265047,1746678633475,-450.0,0.00019998,2]
[360265048,1746678633485,-561.55,0.00019998,2]
[360265049,1746678633494,-450.0,0.00019998,2]
[360265050,1746678633504,-487.14,0.00019998,2]
[360265051,1746678633514,-552.53185318,0.00019998,2]
[360265052,1746678633524,-450.0,0.00019998,2]
[360265053,1746678633533,-450.0,0.00019998,2]
[360265054,1746678633543,-450.0,0.00019998,2]
[360265055,1746678633553,-519.03,0.00019998,2]
[360265056,1746678633563,-450.0,0.00019998,2]
[360265057,1746678633573,-450.0,0.00019998,2]
[360265058,1746678633583,-500.0,0.00019998,2]
[360265059,1746678633596,-450.0,0.00019998,2]
[360265060,1746678633606,-450.0,0.00019998,2]
[360265061,1746678633616,-450.0,0.00019998,2]
[360265062,1746678633626,-450.0,0.00019998,2]
[360265063,1746678633636,-450.0,0.00019998,2]
[360265064,1746678633646,-450.0,0.00019998,2]
[360265065,1746678633657,-450.0,0.00019998,2]
[360265066,1746678633668,-450.0,0.00019998,2]
[360265067,1746678633678,-450.0,0.00019998,2]
[360265068,1746678633688,-450.0,0.00019998,2]
[360265069,1746678633697,-450.0,0.00019998,2]
[360265070,1746678633707,-5716.79,0.00019998,2]
[360265071,1746678633718,-450.0,0.00019998,2]
[360265072,1746678633733,-450.0,0.00019998,2]
[360265073,1746678633743,-388.1,0.00019998,2]
[360265074,1746678633752,-450.0,0.00019998,2]
[360265075,1746678633763,-470.0,0.00019998,2]
[360265076,1746678633773,-450.0,0.00019998,2]
[360265077,1746678633783,-450.0,0.00019998,2]
[360265078,1746678633794,-450.0,0.00019998,2]
[360265079,1746678633804,-450.0,0.00019998,2]
[360265080,1746678633814,-450.0,0.00019998,2]
[360265081,1746678633824,-477.3589215,0.00019998,2]
[360265082,1746678633834,-450.0,0.00019998,2]
[360265083,1746678633844,-450.0,0.00019998,2]
[360265084,1746678633854,-170.48226082,0.00019998,2]
[360265085,1746678633864,-450.0,0.00019998,2]
[360265086,1746678633874,-485.34677431,0.00019998,2]
[360265087,1746678633884,-450.0,0.00019998,2]
[360265088,1746678633894,-412.81,0.00019998,2]
[360265089,1746678633906,-450.0,0.00019998,2]
[360265090,1746678633916,-484.05,0.00019998,2]
[360265091,1746678633926,-459.29235506,0.00019998,2]
[360265092,1746678633936,-1103.26,0.00019998,2]
[360265093,1746678633946,-450.0,0.00019998,2]
[360265094,1746678633956,-966.92,0.00019998,2]
[360265095,1746678633966,-450.0,0.00019998,2]
[360265096,1746678633976,-450.0,0.00019998,2]
[360265097,1746678633986,-5780.88038294,0.00019999,2]
[360265098,1746678633997,-450.0,0.00019999,2]
[360265099,1746678634008,-450.0,0.00019999,2]
[360265100,1746678634019,-270.0,0.00019999,2]
[360265101,1746678634029,-504.2245636,0.00019999,2]
[360265102,1746678634039,-3163.61561137,0.00019999,2]
[360265103,1746678634050,-273.99509766,0.00019999,2]
[360265104,1746678634061,-255.64,0.00019999,2]
[360265105,1746678634071,-450.0,0.00019999,2]
[360265106,1746678634082,-464.13,0.00019999,2]
[360265107,1746678634092,-464.13,0.00019999,2]
[360265108,1746678634102,-464.13,0.00019999,2]
[360265109,1746678634112,-464.13,0.00019999,2]
[360265110,1746678634122,-464.13,0.00019999,2]
[360265111,1746678634132,-464.13,0.00019999,2]
[360265112,1746678634143,-464.13,0.00019999,2]
[360265113,1746678634154,-464.13,0.00019999,2]
[360265114,1746678634164,-464.13,0.00019999,2]
[360265115,1746678634185,-464.13,0.00019999,2]
[360265116,1746678634197,-464.13,0.00019999,2]
[360265117,1746678634207,-464.13,0.00019999,2]
[360265118,1746678634217,-464.13,0.00019999,2]
[360265119,1746678634227,-464.13,0.00019999,2]
[360265120,1746678634237,-464.13,0.00019999,2]
[360265121,1746678634247,-464.13,0.00019999,2]
[360265122,1746678634258,-464.13,0.00019999,2]
[360265123,1746678634268,-464.13,0.00019999,2]
[360265124,1746678634278,-464.13,0.00019999,2]
[360265125,1746678634288,-464.13,0.00019999,2]
[360265126,1746678634298,-464.13,0.00019999,2]
[360265127,1746678634308,-464.20273107,0.00019999,2]
[360265128,1746678634318,-966.99,0.00019999,2]
[360265129,1746678634328,-966.99,0.00019999,2]
[360265130,1746678634339,-966.99,0.00019999,2]
[360265131,1746678634349,-966.99,0.00019999,2]
[360265132,1746678634359,-966.99,0.00019999,2]
[360265133,1746678634370,-966.99,0.00019999,2]
[360265134,1746678634380,-966.99,0.00019999,2]
[360265135,1746678634390,-966.99,0.00019999,2]
[360265136,1746678634402,-966.99,0.00019999,2]
[360265137,1746678634412,-966.99,0.00019999,2]
[360265138,1746678634423,-966.99,0.00019999,2]
[360265139,1746678634433,-966.99,0.00019999,2]
[360265140,1746678634443,-966.99,0.00019999,2]
[360265141,1746678634453,-966.99,0.00019999,2]
[360265142,1746678634463,-966.99,0.00019999,2]
[360265143,1746678634474,-966.99,0.00019999,2]
[360265144,1746678634484,-966.99,0.00019999,2]
[360265145,1746678634494,-966.99,0.00019999,2]
[360265146,1746678634504,-966.99,0.00019999,2]
[360265147,1746678634514,-966.99,0.00019999,2]
[360265148,1746678634523,-966.99,0.00019999,2]
[360265149,1746678634533,-966.99,0.00019999,2]
[360265150,1746678634543,-966.99057971,0.00019999,2]
[360265151,1746678634553,-450.0,0.00019999,2]
[360265152,1746678634564,-191.71,0.00019999,2]
[360265153,1746678634573,-450.0,0.00019999,2]
[360265154,1746678634583,-450.0,0.00019999,2]
[360265155,1746678634596,-450.0,0.00019999,2]
[360265156,1746678634606,-448.0,0.00019999,2]
[360265157,1746678634621,-450.0,0.00019999,2]
[360265158,1746678634630,-450.0,0.00019999,2]
[360265159,1746678634642,-450.0,0.00019999,2]
[360265160,1746678634652,-450.0,0.00019999,2]
[360265161,1746678634662,-450.0,0.00019999,2]
[360265162,1746678634673,-450.0,0.00019999,2]
[360265163,1746678634684,-450.0,0.00019999,2]
[360265164,1746678634694,-450.0,0.00019999,2]
[360265165,1746678634703,-450.0,0.00019999,2]
[360265166,1746678634713,-450.0,0.00019999,2]
[360265167,1746678634723,-450.0,0.00019999,2]
[360265168,1746678634734,-450.0,0.00019999,2]
[360265169,1746678634743,-450.0,0.00019999,2]
[360265170,1746678634754,-450.0,0.00019999,2]
[360265171,1746678634763,-450.0,0.00019999,2]
[360265172,1746678635039,-450.0,0.00019999,2]
[360265173,1746678635051,-567.89862142,0.00019999,2]
[360265174,1746678635062,-450.0,0.00019999,2]
[360265175,1746678635072,-450.0,0.00019999,2]
[360265176,1746678635082,-450.0,0.00019999,2]
[360265177,1746678635092,-450.0,0.00019999,2]
[360265178,1746678635102,-525.19,0.00019999,2]
[360265179,1746678635111,-450.0,0.00019999,2]
[360265180,1746678635121,-450.0,0.00019999,2]
[360265181,1746678635131,-450.0,0.00019999,2]
[360265182,1746678635140,-450.0,0.00019999,2]
[360265183,1746678635150,-450.0,0.00019999,2]
[360265184,1746678635160,-450.0,0.00019999,2]
[360265185,1746678635169,-450.0,0.00019999,2]
[360265186,1746678635179,-450.0,0.00019999,2]
[360265187,1746678635188,-469.89,0.00019999,2]
[360265188,1746678635197,-450.0,0.00019999,2]
[360265189,1746678635207,-450.0,0.00019999,2]
[360265190,1746678635217,-450.0,0.00019999,2]
[360265191,1746678635226,-450.0,0.00019999,2]
[360265192,1746678635236,-510.83226893,0.00019999,2]
[360265193,1746678635246,-450.0,0.00019999,2]
[360265194,1746678635260,-450.0,0.00019999,2]
[360265195,1746678635269,-450.0,0.00019999,2]
[360265196,1746678635279,-346.75173779,0.00019999,2]
[360265197,1746678635288,-500.0,0.00019999,2]
[360265198,1746678635298,-500.0,0.00019999,2]
[360265199,1746678635308,-500.0,0.00019999,2]
[360265200,1746678635317,-450.0,0.00019999,2]
[360265201,1746678635326,-500.0,0.00019999,2]
[360265202,1746678635336,-450.0,0.00019999,2]
[360265203,1746678635346,-500.0,0.00019999,2]
[360265204,1746678635355,-450.0,0.00019999,2]
[360265205,1746678635365,-500.0,0.00019999,2]
[360265206,1746678635374,-450.0,0.00019999,2]
[360265207,1746678635383,-500.0,0.00019999,2]
[360265208,1746678635392,-450.0,0.00019999,2]
[360265209,1746678635401,-488.38280694,0.00019999,2]
[360265210,1746678635411,-450.0,0.00019999,2]
[360265211,1746678635420,-450.0,0.00019999,2]
[360265212,1746678635430,-450.0,0.00019999,2]
[360265213,1746678635439,-450.0,0.00019999,2]
[360265214,1746678635449,-477.07035903,0.00019999,2]
[360265215,1746678635458,-450.0,0.00019999,2]
[360265216,1746678635467,-450.0,0.00019999,2]
[360265217,1746678635476,-450.0,0.00019999,2]
[360265218,1746678635485,-450.0,0.00019999,2]
[360265219,1746678635495,-202.01570447,0.00019999,2]
[360265220,1746678635505,-323.06829418,0.00019999,2]
[360265221,1746678635515,-178.87515665,0.00019999,2]
[360265222,1746678635525,-450.0,0.00019999,2]
[360265223,1746678635535,-450.0,0.00019999,2]
[360265224,1746678635544,-450.0,0.00019999,2]
[360265225,1746678635554,-450.0,0.00019999,2]
[360265226,1746678635563,-450.0,0.00019999,2]
[360265227,1746678635573,-450.0,0.00019999,2]
[360265228,1746678635582,-450.0,0.00019999,2]
[360265229,1746678635594,-450.0,0.00019999,2]
[360265230,1746678635604,-450.0,0.00019999,2]
[360265231,1746678635613,-450.0,0.00019999,2]
[360265232,1746678635623,-450.0,0.00019999,2]
[360265233,1746678635634,-450.0,0.00019999,2]
[360265234,1746678635644,-450.0,0.00019999,2]
[360265235,1746678635653,-392.16628381,0.00019999,2]
[360265236,1746678635663,-5716.79,0.00019999,2]
[360265237,1746678635674,-3897.83069538,0.00019999,2]
[360265238,1746678635692,-284.57,0.00019999,2]
[360265239,1746678635703,-439.64,0.00019999,2]
[360265240,1746678635728,-998.51788266,0.00019999,2]
[360265241,1746678635741,-96.23142196,0.00019999,2]
[360265242,1746678635751,-355.4298978,0.00019999,2]
[360265245,1746678638343,-467.25936317,0.00019998,2]
[360265246,1746678638354,-4419.74701938,0.00019999,2]
[360265247,1746678638454,-448.0198923,0.00019999,2]
[360265248,1746678640698,-16.38233936,0.00019998,2]
[360265249,1746678640711,-433.61766064,0.00019998,2]
[360265250,1746678640722,-493.59319052,0.00019999,2]
[360265251,1746678640731,-5716.79,0.00019999,2]
[360265252,1746678640742,-5716.79,0.00019999,2]
[360265253,1746678640752,-5716.79,0.00019999,2]
[360265254,1746678640762,-5716.79,0.00019999,2]
[360265255,1746678640772,-5716.79,0.00019999,2]
[360265256,1746678640783,-5716.79,0.00019999,2]
[360265257,1746678640793,-5716.79,0.00019999,2]
[360265258,1746678640803,-5716.79,0.00019999,2]
[360265259,1746678640814,-5716.79,0.00019999,2]
[360265260,1746678640823,-5716.79,0.00019999,2]
[360265261,1746678640834,-5716.79,0.00019999,2]
[360265262,1746678640843,-5716.79,0.00019999,2]
[360265263,1746678640853,-5716.79,0.00019999,2]
[360265264,1746678640863,-5716.79,0.00019999,2]
[360265265,1746678640873,-450.0,0.00019999,2]
[360265266,1746678640883,-5716.79,0.00019999,2]
[360265267,1746678640892,-450.0,0.00019999,2]
[360265268,1746678640903,-5716.79,0.00019999,2]
[360265269,1746678640914,-450.0,0.00019999,2]
[360265270,1746678640924,-450.0,0.00019999,2]
[360265271,1746678640934,-5716.79,0.00019999,2]
[360265272,1746678640944,-450.0,0.00019999,2]
[360265273,1746678640954,-5716.79,0.00019999,2]
[360265274,1746678640963,-450.0,0.00019999,2]
[360265275,1746678640974,-5716.79,0.00019999,2]
[360265276,1746678640984,-450.0,0.00019999,2]
[360265277,1746678640998,-5717.00805205,0.00019999,2]
[360265278,1746678641009,-450.0,0.00019999,2]
[360265279,1746678641020,-450.0,0.00019999,2]
[360265280,1746678641030,-450.0,0.00019999,2]
[360265281,1746678641040,-450.0,0.00019999,2]
[360265282,1746678641051,-177.89661196,0.00019999,2]
[360265283,1746678641061,-450.0,0.00019999,2]
[360265284,1746678641071,-450.0,0.00019999,2]
[360265285,1746678641082,-450.0,0.00019999,2]
[360265286,1746678641092,-393.27548474,0.00019999,2]
[360265287,1746678641102,-450.0,0.00019999,2]
[360265288,1746678641112,-450.0,0.00019999,2]
[360265289,1746678641123,-450.0,0.00019999,2]
[360265290,1746678641132,-473.58334736,0.00019999,2]
[360265291,1746678641142,-450.0,0.00019999,2]
[360265292,1746678641152,-450.0,0.00019999,2]
[360265293,1746678641162,-450.0,0.00019999,2]
[360265294,1746678641172,-450.0,0.00019999,2]
[360265295,1746678641182,-447.09,0.00019999,2]
[360265296,1746678641192,-450.0,0.00019999,2]
[360265297,1746678641202,-465.17814737,0.00019999,2]
[360265298,1746678641212,-450.0,0.00019999,2]
[360265299,1746678641222,-450.0,0.00019999,2]
[360265301,1746678641232,-450.0,0.00019999,2]
[360265303,1746678641242,-450.0,0.00019999,2]
[360265305,1746678641252,-532.93344722,0.00019999,2]
[360265307,1746678641261,-1103.26,0.00019999,2]
[360265309,1746678641271,-1103.26,0.00019999,2]
[360265311,1746678641281,-1103.26,0.00019999,2]
[360265313,1746678641290,-1103.26,0.00019999,2]
[360265315,1746678641299,-1103.26,0.00019999,2]
[360265316,1746678641309,-1103.26,0.00019999,2]
[360265317,1746678641318,-1103.26,0.00019999,2]
[360265318,1746678641328,-1103.26,0.00019999,2]
[360265319,1746678641337,-1103.26,0.00019999,2]
[360265320,1746678641347,-1103.26,0.00019999,2]
[360265321,1746678641356,-1103.26,0.00019999,2]
[360265322,1746678641365,-1103.26,0.00019999,2]
[360265323,1746678641375,-1103.26,0.00019999,2]
[360265324,1746678641384,-1103.26,0.00019999,2]
[360265325,1746678641394,-1103.26,0.00019999,2]
[360265326,1746678641404,-1103.26,0.00019999,2]
[360265327,1746678641414,-1103.26,0.00019999,2]
[360265328,1746678641423,-1103.26,0.00019999,2]
[360265329,1746678641432,-1103.26,0.00019999,2]
[360265330,1746678641442,-1103.26,0.00019999,2]
[360265331,1746678641451,-1103.26,0.00019999,2]
[360265332,1746678641461,-1103.26,0.00019999,2]
[360265333,1746678641470,-1103.4631,0.00019999,2]
[360265334,1746678641479,-966.92,0.00019999,2]
[360265335,1746678641489,-966.92,0.00019999,2]
[360265336,1746678641498,-966.92,0.00019999,2]
[360265337,1746678641509,-966.92,0.00019999,2]
[360265339,1746678641519,-966.92,0.00019999,2]
[360265341,1746678641535,-966.92,0.00019999,2]
[360265343,1746678641548,-966.92,0.00019999,2]
[360265346,1746678641562,-966.92,0.00019999,2]
[360265349,1746678641578,-966.92,0.00019999,2]
[360265351,1746678641593,-966.92,0.00019999,2]
[360265353,1746678641607,-966.92,0.00019999,2]
[360265356,1746678641619,-966.92,0.00019999,2]
[360265358,1746678641632,-966.92,0.00019999,2]
[360265360,1746678641647,-966.92,0.00019999,2]
[360265362,1746678641660,-966.92,0.00019999,2]
[360265365,1746678641673,-966.92,0.00019999,2]
[360265367,1746678641687,-966.92,0.00019999,2]
[360265370,1746678641700,-966.92,0.00019999,2]
[360265372,1746678641714,-966.92,0.00019999,2]
[360265374,1746678641727,-966.92,0.00019999,2]
[360265377,1746678641741,-966.92,0.00019999,2]
[360265379,1746678641754,-966.92,0.00019999,2]
[360265382,1746678641767,-966.93844961,0.00019999,2]
[360265384,1746678641779,-500.0,0.00019999,2]
[360265386,1746678641791,-500.0,0.00019999,2]
[360265388,1746678641802,-500.0,0.00019999,2]
[360265390,1746678641812,-212.47834533,0.00019999,2]
[360265393,1746678641826,-500.0,0.00019999,2]
[360265395,1746678641838,-500.0,0.00019999,2]
[360265397,1746678641851,-500.0,0.00019999,2]
[360265400,1746678641863,-500.0,0.00019999,2]
[360265402,1746678641875,-500.0,0.00019999,2]
[360265404,1746678641889,-500.0,0.00019999,2]
[360265407,1746678641901,-500.0,0.00019999,2]
[360265409,1746678641914,-500.0,0.00019999,2]
[360265411,1746678641931,-500.0,0.00019999,2]
[360265414,1746678641944,-500.0,0.00019999,2]
[360265416,1746678641958,-500.0,0.00019999,2]
[360265418,1746678641969,-500.0,0.00019999,2]
[360265421,1746678641983,-500.0,0.00019999,2]
[360265423,1746678641996,-500.0,0.00019999,2]
[360265426,1746678642009,-500.0,0.00019999,2]
[360265428,1746678642022,-500.0,0.00019999,2]
[360265430,1746678642035,-500.0,0.00019999,2]
[360265432,1746678642046,-510.32688766,0.00019999,2]
[360265435,1746678642059,-500.0,0.00019999,2]
[360265437,1746678642071,-500.0,0.00019999,2]
[360265439,1746678642083,-500.0,0.00019999,2]
[360265441,1746678642095,-500.0,0.00019999,2]
[360265444,1746678642107,-500.0,0.00019999,2]
[360265446,1746678642120,-500.0,0.00019999,2]
[360265448,1746678642135,-500.0,0.00019999,2]
[360265451,1746678642148,-155.73548898,0.00019999,2]
[360265453,1746678642160,-500.0,0.00019999,2]
[360265455,1746678642172,-586.27053847,0.00019999,2]
[360265457,1746678642184,-258.49320526,0.00019999,2]
[360265460,1746678642195,-4020.0,0.0002,2]
[360265462,1746678642208,-5935.0,0.0002,2]
[360265464,1746678642220,-35270.24430132,0.0002,2]
[360265466,1746678642231,-176885.59097398,0.0002,2]
[360265471,1746678642271,-254.1722998,0.0002,2]
[360265613,1746678643456,-200.0,0.00019898,2]
[360265618,1746678643467,-1788.39988314,0.0002,2]
[360265650,1746678643622,-37997.54494239,0.0002,2]
[360265675,1746678643781,-7807.29397427,0.0002,2]
[360265677,1746678643838,-12102.24780549,0.0002,2]
[360265692,1746678646485,-1911.0,0.0002,2]
[360265693,1746678646500,-730.63109784,0.0002,2]
[360265694,1746678646513,-2195.572128,0.0002,2]
[360265695,1746678646527,-1528.87515665,0.0002,2]
[360265696,1746678646540,-8153.96839183,0.0002,2]
[360265697,1746678646554,-448.15131343,0.0002,2]
[360265698,1746678646813,-156665.58838196,0.0002,2]
[360265699,1746678652257,596.0,0.000194,2]
[360265723,1746678730875,218.68512524,0.0003,30]
[360265724,1746678850459,177.54099298,0.0003,30]
[360265725,1746678851920,150.0,0.0003,30]
[360265726,1746678854825,150.0,0.0003,30]
[360265727,1746678857468,150.53453707,0.0003,30]
[360265729,1746678916021,150.0,0.0003,30]
[360265731,1746678964508,151.87813952,0.0003,30]
[360265732,1746678973893,176.8,0.00019178,2]
[360265733,1746678984901,357.08,0.00018955,2]
[360265734,1746679042081,2217.25,0.0003,30]
[360265736,1746679127110,250.0,0.00018923,2]
[360265737,1746679291217,243.82,0.00018936,2]
[360265738,1746679301211,651.0532921,0.000301,120]
[360265739,1746679342815,222.0,0.0003,30]
[360265740,1746679400539,1000.0,0.00018931,2]
[360265741,1746679446558,1316.7177678,0.0003,30]
[360265742,1746679508424,150.0,0.0003,30]
[360265744,1746679511212,150.0,0.0003,30]
[360265745,1746679562614,446.81,0.0001699,2]
[360265746,1746679562833,446.81,0.00019254,2]
[360265747,1746679646929,166.15,0.00019475,2]
[360265748,1746679666493,250.0,0.00017,2]
[360265749,1746679667569,300.0,0.00019,2]
[360265751,1746679765228,501.10184129,0.0003,30]
[360265754,1746679831579,-596.0,0.000196,2]
[360265755,1746679831590,-200.0,0.000197,2]
[360265756,1746679831600,-500.0,0.00019773,2]
[360265757,1746679831610,-500.0,0.00019773,2]
[360265758,1746679831620,-1200.0,0.00019799,2]
[360265759,1746679831631,-74004.18124423,0.000198,2]
[360265760,1746679831641,-596.0,0.000198,2]
[360265761,1746679831664,-3225.74866448,0.00019807,2]
[360265762,1746679831675,-2160.37096129,0.00019828,2]
[360265763,1746679831689,-1065.37770319,0.00019828,2]
[360265764,1746679831699,-502.02433921,0.00019873,2]
[360265765,1746679831709,-500.0,0.00019873,2]
[360265766,1746679831719,-500.0,0.00019873,2]
[360265767,1746679831729,-500.0,0.00019873,2]
[360265768,1746679831740,-207.4,0.00019878,2]
[360265769,1746679831750,-703.67620097,0.00019886,2]
[360265770,1746679831761,-3718.6172,0.00019886,2]
[360265771,1746679831771,-2500.0,0.00019886,2]
[360265772,1746679831782,-703.67620091,0.00019888,2]
[360265773,1746679831792,-703.67620091,0.00019889,2]
[360265774,1746679831805,-945.43685393,0.0001989,2]
[360265775,1746679831819,-6099.9999999,0.0001989,2]
[360265776,1746679831832,-5880.0,0.0001989,2]
[360265777,1746679831846,-3550.000005,0.0001989,2]
[360265778,1746679831859,-1300.0,0.0001989,2]
[360265779,1746679831871,-7503.62901673,0.0001989,2]
[360265780,1746679831883,-25370.79913571,0.0001989,2]
[360265781,1746679831895,-52616.69467952,0.0001989,2]
[360265782,1746679831907,-7848.25184115,0.0001989,2]
[360265783,1746679831924,-35870.52300598,0.0001989,2]
[360265784,1746679831936,-9488.56694712,0.0001989,2]
[360265785,1746679831948,-937.02868256,0.0001989,2]
[360265809,1746679832371,-3430.86173256,0.0001989,2]
[360265811,1746679832384,-3408.02773957,0.0001989,2]